Cogmind - Beta 16 @@@ ROGUE MODE // 2025.10.30 @ 17:36:34 Player: Naughtyusername Result: Self-destructed Performance ------------- Evolutions (5) 2500 Regions Visited (11) 2200 Robots Destroyed (156) 780 Value Destroyed (6361) 6361 Prototype IDs (14) 280 Alien Tech Used (0) 0 Bonus (2872) 2872 TOTAL SCORE: 14993 Bonus ------- High Alert Combat Kills 877 Follower Combat Kills 925 Registered with UFD 300 Met Optimus in HQ 500 Met R17 at Cetus 500 Friendly Fire -230 Cogmind --------- Core Integrity 954/1000 Matter 134/300 Energy 170/170 System Corruption 3% Temperature Warm (167) Movement Immobile (Siege) Ox1 Location -5/Factory Parts ------- > --- POWER (2) -------- Light Neutrino Core > --- PROPULSION (6) --- Centrium Heavy Treads > --- UTILITY (7) ------ High-capacity Storage Unit Advanced Signal Interpreter Core Analyzer Centrium Medium Armor Plating Centrium Medium Armor Plating Medium Regenerative Plating > --- WEAPON (2) ------- Advanced KE Penetrator Advanced KE Penetrator > --- INVENTORY (20) --- Light Neutrino Core Quantum Reactor Quantum Reactor Advanced Heat Sink Advanced Heat Sink Energy Well (350) Improved Sensor Array EM Shield A0-MCA's Component Scanner Advanced Variable Charge Gun Advanced KE Penetrator Advanced KE Penetrator Advanced KE Penetrator Long-range Missile Launcher CPS Tube (2) CPS Tube (2) Peak State ------------ > --- POWER ------------ Light Neutrino Core Quantum Reactor > --- PROPULSION ------- Improved Treads Medium Treads Centrium Heavy Treads Centrium Heavy Treads > --- UTILITY ---------- Improved Cooling System High-capacity Storage Unit Advanced Signal Interpreter Core Analyzer Centrium Medium Armor Plating Centrium Medium Armor Plating Medium Regenerative Plating > --- WEAPON ----------- Hypervelocity Gauss Cannon Hypervelocity Gauss Cannon > --- INVENTORY -------- Quantum Reactor Quantum Reactor Advanced Heat Sink Advanced Heat Sink Energy Well Improved Sensor Array EM Shield A0-MCA's Component Scanner Advanced Variable Charge Gun Advanced KE Penetrator Advanced KE Penetrator Advanced KE Penetrator Advanced KE Penetrator Advanced KE Penetrator Guided EMP Blaster Long-range Missile Launcher CPS Tube CPS Tube [Rating: 121] Favorites ----------- Power Light Ion Engine Engine Light Ion Engine Power Core Micro Nuclear Core Reactor Quantum Reactor Propulsion Light Treads Treads Light Treads Leg Armored Leg Wheel Subdweller Monowheel Utility High-capacity Storage Unit Device Improved Cooling System Storage High-capacity Storage Unit Processor Advanced Signal Interpreter Hackware Hacking Suite Protection Weapon Shielding Weapon Improved Light Cannon Energy Gun Improved Heavy Laser Energy Cannon Proton Cannon Ballistic Gun Assault Rifle Ballistic Cannon Improved Light Cannon Launcher Rocket Launcher Impact Weapon Heavy Mace Slashing Weapon Great Axe Build | -11 -10 -10 -10 -9 -9 -6 -6 -6 -6 -6 -5 ------- Run | Yrd Mat Min Sub Rec Scr Fac Ext Cet Arc Hub Fac Slots Evolved 10 | . . . . . . 8 . . . . 2 Power 1 | . . . . . . 1 . . . . . Propulsion 4 | . . . . . . 3 . . . . 1 Utility 5 | . . . . . . 4 . . . . 1 Weapon . | . . . . . . . . . . . . Parts Attached 107 | 7 5 3 8 1 7 34 22 7 1 2 10 Power 15 | 1 . 1 1 . 2 2 5 1 . 1 1 Engine 8 | 1 . 1 1 . 2 1 2 . . . . Core 5 | . . . . . . 1 3 . . . 1 Reactor 2 | . . . . . . . . 1 . 1 . Propulsion 31 | 2 1 . 3 1 2 10 8 2 1 . 1 Treads 11 | 2 1 . . . 1 1 2 2 1 . 1 Leg 15 | . . . . . . 9 6 . . . . Wheel 5 | . . . 3 1 1 . . . . . . Hover . | . . . . . . . . . . . . Flight . | . . . . . . . . . . . . Utility 28 | 2 2 1 1 . 2 12 4 2 . 1 1 Device 6 | 1 . . . . . 3 2 . . . . Storage 4 | 1 1 . . . 1 1 . . . . . Processor 4 | . . . . . . 3 1 . . . . Hackware 4 | . 1 . . . . 1 1 . . 1 . Protection 10 | . . 1 1 . 1 4 . 2 . . 1 Artifact . | . . . . . . . . . . . . Weapon 33 | 2 2 1 3 . 1 10 5 2 . . 7 Energy Gun 6 | . . . . . . 4 2 . . . . Energy Cannon 2 | . . . . . . 1 1 . . . . Ballistic Gun 10 | 2 2 . . . . 1 1 2 . . 2 Ballistic Cannon 7 | . . . 2 . 1 . 1 . . . 3 Launcher 5 | . . 1 1 . . 1 . . . . 2 Special Weapon . | . . . . . . . . . . . . Impact Weapon 1 | . . . . . . 1 . . . . . Slashing Weapon 2 | . . . . . . 2 . . . . . Piercing Weapon . | . . . . . . . . . . . . Special Melee Weapon . | . . . . . . . . . . . . Unidentified Prototypes 10 | . . . . . . 2 1 4 . . 3 Corrupted Parts 3 | . . . . . . . . 3 . . . System Corruption 16 | . . . . . . . . 16 . . . Parts Lost 34 | . 1 . 4 . . 7 15 . . 2 5 Power 8 | . . . 1 . . 1 3 . . 2 1 Propulsion 13 | . 1 . 2 . . 2 7 . . . 1 Utility 7 | . . . 1 . . 2 2 . . . 2 Weapon 6 | . . . . . . 2 3 . . . 1 Highest Loss Streak 10 | . 1 . 2 . . 3 10 . . 2 4 To Critical Strikes . | . . . . . . . . . . . . Average Backups 16 | 1 10 14 14 15 17 18 17 18 19 18 18 Power . | . 1 1 . 1 . . . 2 3 2 2 Propulsion . | . . . . 1 1 . 2 . . . . Utility 5 | . 3 4 4 4 5 8 5 5 7 7 6 Weapon 7 | . 5 7 7 7 7 7 7 7 7 7 7 Tool/Special . | . . . . . . . . . . . . Unused Backups 33 | . 1 . 2 . 7 5 1 4 1 . 12 Power 4 | . . . . . 1 . . . . . 3 Propulsion 1 | . . . . . . . . 1 . . . Utility 12 | . . . . . 1 2 1 2 1 . 5 Weapon 13 | . 1 . 2 . 5 3 . . . . 2 Tool/Special 3 | . . . . . . . . 1 . . 2 Average Slot Usage (%) 94 | . 99 100 97 100 93 91 98 89 86 85 76 Engine 10 | . 14 14 13 14 14 9 4 . . . . Core 1 | . . . . . . 1 6 7 6 5 . Treads 10 | . 28 28 12 . 3 2 1 18 20 20 17 Leg 8 | . . . . . . 20 31 4 . . . Wheel 7 | . . . 14 28 18 2 . . . . . Device 4 | . . 5 3 . . 8 9 10 6 6 6 Storage 10 | . 14 14 14 14 14 6 6 6 6 6 5 Processor 5 | . . . . . . 10 10 13 13 13 11 Hackware 3 | . 12 . . . . 5 4 . . 3 3 Protection 8 | . . 8 10 14 14 6 6 8 13 9 11 Energy Gun 2 | . . . . . . 6 11 . . . . Ballistic Gun 7 | . 28 27 7 . . . . 11 13 13 1 Ballistic Cannon 10 | . . . 19 28 28 3 . 1 . . 8 Peak Build Rating 121 | 7 11 10 13 13 18 68 72 109 110 110 121 Average Rating 38 | 5 10 9 11 12 13 49 68 93 109 108 107 On Entrance 42 | . 7 9 9 13 12 18 67 59 109 110 101 Avg Prop Armor Cover (%) 5 | . . . 4 4 5 8 10 8 . . . Naked Turns . | . . . . . . . . . . . . Heaviest Build 112 | 12 28 32 34 32 62 80 83 96 96 102 112 Greatest Support 211 | 40 40 40 40 30 12 81 81 180 183 183 211 Greatest Overweight (x) 6 | . . . 1 3 6 6 2 1 . . . Average Overweight (x) 1 | . . . . 1 4 2 . . . . . Largest Inventory Capacity 20 | 8 15 15 15 15 20 20 20 20 20 20 20 Average Capacity 17 | 7 13 15 15 15 18 20 20 20 20 20 20 Most Carried 20 | 2 15 15 15 15 20 20 20 20 20 20 20 Average Carried 16 | 1 10 14 14 14 17 19 18 19 20 19 19 Final Capacity 20 | 8 15 15 15 15 20 20 20 20 20 20 20 Final Carried 20 | 2 13 15 15 15 20 20 18 20 20 19 16 Class Distribution -------------------- 56% | Mutant 19% | Scavenger-Mutant 12% | Derelict-Mutant 9% | Commander-Mutant Dominant Class ---------------- Mutant | -10/Materials Mutant | -10/Mines Mutant | -10/Subcaves Mutant | -9/Recycling Mutant | -9/Scraptown Derelict-Mutant | -6/Factory Commander-Mutant | -6/Extension Scavenger-Mutant | -6/Cetus Scavenger-Mutant | -6/Archives Scavenger-Mutant | -6/Hub_04(d) Scavenger-Mutant | -5/Factory Resources | -11 -10 -10 -10 -9 -9 -6 -6 -6 -6 -6 -5 ----------- Run | Yrd Mat Min Sub Rec Scr Fac Ext Cet Arc Hub Fac Matter Collected 3625 | 383 227 100 245 229 55 780 410 405 109 131 551 Remotely . | . . . . . . . . . . . . Salvage Created 6234 | 236 578 57 137 176 . 1347 1918 371 142 336 936 Parts 331 | 21 42 2 8 8 . 76 73 16 5 31 49 Haulers Intercepted 5 | . 2 . . . . 1 . . . . 2 Recyclers Shooed 5 | . . . . . . 1 1 . . . 3 Parts Field Recycled . | . . . . . . . . . . . . Retrieved Matter . | . . . . . . . . . . . . Parts Self-Destructed 13 | . . . 13 . . . . . . . . Prevented . | . . . . . . . . . . . . Parts Restored . | . . . . . . . . . . . . Kills | -11 -10 -10 -10 -9 -9 -6 -6 -6 -6 -6 -5 ------- Run | Yrd Mat Min Sub Rec Scr Fac Ext Cet Arc Hub Fac Combat Hostiles Destroyed 111 | . 12 3 8 1 . 29 33 5 2 4 14 Guns 67 | . 12 . . . . 13 31 5 2 4 . Cannons 15 | . . . 6 1 . 2 . . . . 6 AOE 27 | . . 3 2 . . 14 . . . . 8 Classes Destroyed 20 | 3 5 . 2 1 . 6 2 . . . 1 Worker 9 | 2 . . . . . 1 . . . 5 1 Builder 9 | . 1 . . 1 . 3 1 . . 1 2 Tunneler 5 | 4 . . . . . 1 . . . . . Hauler 5 | . 2 . . . . 1 . . . . 2 Recycler 4 | 1 . . . 2 . . 1 . . . . Mechanic 2 | . . . . . . 2 . . . . . Operator 3 | . 1 . . . . 2 . . . . . Turret 2 | . . . 2 . . . . . . . . Watcher 3 | . . . . . . 1 1 . . . 1 Swarmer 8 | . 3 3 2 . . . . . . . . Grunt 48 | . 9 . 3 . . 10 17 . . 2 7 Brawler 1 | . . . . . . . 1 . . . . Duelist 2 | . . . . . . 2 . . . . . Protector 3 | . . . . . . 2 1 . . . . Sentry 15 | . . . . 1 . 4 7 . 2 1 . Demolisher 2 | . . . . . . . 2 . . . . Specialist 3 | . . . . . . . . . . . 3 Hunter 11 | . . . . . . 4 3 . . . 4 Programmer 10 | . . . . . . 7 2 . . 1 . Cetus Guard 5 | . . . . . . . . 5 . . . Subdweller 3 | . . . 3 . . . . . . . . Thug 3 | . . 1 . . . . . 2 . . . Best Kill Streak 18 | 2 3 3 3 2 . 18 12 3 2 7 7 Combat Bots Only 13 | . 3 3 2 1 . 13 12 3 2 3 5 Max Kills in Single Turn 12 | 1 1 3 1 1 . 12 1 1 1 2 6 Gunslinging . | . . . . . . . . . . . . Exploded 10 | . . 2 1 . . 10 . . . . 5 Melee . | . . . . . . . . . . . . Uniques/NPCs Destroyed 1 | . . . . . . . . 1 . . . A7 (-6/Cetus) Combat | -11 -10 -10 -10 -9 -9 -6 -6 -6 -6 -6 -5 -------- Run | Yrd Mat Min Sub Rec Scr Fac Ext Cet Arc Hub Fac Hostile Shots Fired 1049 | . 68 7 56 8 . 265 291 42 10 83 219 Missed 358 | . 20 3 18 3 . 103 90 10 5 23 83 Hits 691 | . 48 4 38 5 . 162 201 32 5 60 136 Melee 11 | . . . . . . 10 . . . . 1 Projectile 680 | . 48 4 38 5 . 152 201 32 5 60 135 AOE 4 | . . . . . . . 4 . . . . Critical Strikes 22 | . . . 1 . . 5 2 8 . 2 4 Part Disruptions 1 | . . . . . . 1 . . . . . Damage Taken 10274 | . 526 126 459 73 . 2288 2461 648 122 911 2660 Core 849 | . 64 . 69 28 . 286 252 20 . 84 46 Absorbed by Shields 822 | . . . . . . 110 480 232 . . . Reduced by Siege Mode 140 | . . . . . . . . 22 . . 118 Redirected to Shielding 21 | . . . 12 9 . . . . . . . Regen/Repaired (Parts) 353 | . . . . . . . . 58 51 53 191 Core Remaining (%) 53 | 100 . . . . 35 . . . . 24 . Volleys Fired 376 | 30 50 4 22 11 . 74 104 22 8 13 38 Largest 2 | 2 2 1 2 2 . 2 2 2 2 2 2 Hottest 145 | 40 40 33 66 66 . 130 145 77 70 70 102 Shots Fired 725 | 60 100 4 44 22 . 140 204 45 16 25 65 Gun 538 | 60 100 . . . . 96 197 34 16 25 10 Cannon 150 | . . . 34 22 . 33 7 11 . . 43 Launcher 37 | . . 4 10 . . 11 . . . . 12 Special . | . . . . . . . . . . . . Kinetic 388 | 60 100 . 34 22 . 33 . 45 16 25 53 Thermal 293 | . . . . . . 96 197 . . . . Explosive 31 | . . 4 10 . . 11 . . . . 6 Electromagnetic 13 | . . . . . . . 7 . . . 6 Robot Hit Streak 23 | 7 15 . 8 9 . 11 23 8 5 4 19 Robot Miss Streak 5 | 2 4 . 2 1 . 3 5 3 1 2 3 Penetration Max 1 | . . . . . . . . 1 . 1 1 Secondary Targets 14 | . 3 . . . . 1 8 2 . . . Max Gunslinging Chain 1 | . 1 . . . . 1 1 1 . . . Shots Hit Robots 502 | 39 58 . 29 17 . 86 168 30 12 15 48 Core Hits 378 | 13 26 6 19 4 . 75 147 18 5 12 53 Critical Kills 13 | . . . . . . . . 3 . 1 9 Critical Parts Destroyed 17 | 1 . . . . . . . 5 . 1 10 Critical Strikes 42 | 1 . . . . . 3 7 9 1 2 19 Burn 9 | . . . . . . 2 7 . . . . Destroy 32 | 1 . . . . . . . 9 1 2 19 Blast 1 | . . . . . . 1 . . . . . Melee Attacks 20 | . . . . . . 19 1 . . . . Impact 4 | . . . . . . 4 . . . . . Slashing 16 | . . . . . . 15 1 . . . . Piercing . | . . . . . . . . . . . . Sneak Attacks 3 | . . . . . . 2 1 . . . . Combat Hostiles . | . . . . . . . . . . . . Follow-up Attacks . | . . . . . . . . . . . . Damage Inflicted 16027 | 388 639 250 838 382 . 4905 4342 877 354 647 2405 Guns 8657 | 388 611 . . . . 1576 4117 639 354 647 325 Cannons 2204 | . . . 529 382 . 438 122 238 . . 495 Explosions 4853 | . . 232 309 . . 2740 . . . . 1572 Melee 240 | . . . . . . 146 94 . . . . Ramming 73 | . 28 18 . . . 5 9 . . . 13 Kinetic 5046 | 388 611 . 529 382 . 438 . 877 354 647 820 Thermal 7086 | . . 38 . . . 2931 4117 . . . . Explosive 2873 | . . 194 309 . . 1385 . . . . 985 Electromagnetic 709 | . . . . . . . 122 . . . 587 Impact . | . . . . . . . . . . . . Slashing 240 | . . . . . . 146 94 . . . . Piercing . | . . . . . . . . . . . . Highest Corruption 28 | . . . . . . 11 11 27 27 28 3 Average Corruption 11 | . . . . . . 4 11 23 27 27 1 Corruption Purged . | . . . . . . . . . . . . Corruption Blocked . | . . . . . . . . . . . . Effects 141 | . . . . . . 28 68 20 6 14 5 Message Errors 29 | . . . . . . 8 17 1 1 1 1 Matter Fused 36 | . . . . . . 4 13 9 2 6 2 Heat Flow Errors 18 | . . . . . . 2 11 2 1 2 . Energy Discharges 15 | . . . . . . 6 4 3 1 1 . Parts Rejected 5 | . . . . . . 1 1 . 1 1 1 Data Loss (minor) 18 | . . . . . . 4 10 2 . 2 . Data Loss (major) 6 | . . . . . . 2 2 2 . . . Misfires 9 | . . . . . . 1 6 1 . . 1 Alerts 1 | . . . . . . . 1 . . . . Weapon Failures 4 | . . . . . . . 3 . . 1 . Overload Shots . | . . . . . . . . . . . . Overflow Damage 295 | . . . . . . 273 . 2 . . 20 Projectiles 15 | . . . . . . 13 . 2 . . . Explosions 204 | . . . . . . 184 . . . . 20 Melee 76 | . . . . . . 76 . . . . . Knockbacks 15 | . . . 2 4 . 5 . . . . 4 Impact 1 | . . . . . . . . . . . 1 Kinetic 14 | . . . 2 4 . 5 . . . . 3 Secondary . | . . . . . . . . . . . . Self-Inflicted Damage 142 | . . 94 23 . . 25 . . . . . Shots 5 | . . 3 1 . . 1 . . . . . Rammed 15 | . 8 5 . . . . . . . . 2 Targets Rammed 19 | . 9 5 . . . 1 2 . . . 2 Kicked 3 | . . . . . . 1 2 . . . . Crushed 1 | . 1 . . . . . . . . . . Highest Temperature 267 | . 25 11 252 42 . 208 267 171 156 152 235 Average Temperature 52 | . 9 7 125 10 . 31 63 90 77 59 72 Received Heat Transfer 2531 | . 180 . 427 18 . 589 651 18 9 351 288 Siege Activations 2 | . . . . . . . . 1 . . 1 Total Turns 40 | . . . . . . . . 15 . . 25 Longest Duration 25 | . . . . . . . . 15 . . 25 Martial Activations . | . . . . . . . . . . . . Shielding Activations . | . . . . . . . . . . . . Robots Disrupted . | . . . . . . . . . . . . Combat Hostiles . | . . . . . . . . . . . . Robots Corrupted 1 | . . . . . . . 1 . . . . Combat Hostiles 1 | . . . . . . . 1 . . . . Parts Fried 3 | . . . . . . . 2 . . . 1 Impact Corruptions . | . . . . . . . . . . . . Robots Melted 1 | . . . . . . . 1 . . . . Combat Hostiles 1 | . . . . . . . 1 . . . . Parts Melted 16 | . . . . . . 8 8 . . . . Heat Transferred 9069 | . . 50 . . . 3318 5701 . . . . Parts Sabotaged 1 | . . . . . . . . . . . 1 Parts Stolen . | . . . . . . . . . . . . Parts Stripped . | . . . . . . . . . . . . Power Chain Reactions . | . . . . . . . . . . . . Alert | -11 -10 -10 -10 -9 -9 -6 -6 -6 -6 -6 -5 ------- Run | Yrd Mat Min Sub Rec Scr Fac Ext Cet Arc Hub Fac Maximum Alert Level 4 | . . . . . . 2 4 3 1 1 . Low Security (%) 62 | 100 100 100 . 100 . 55 3 . . 96 100 Level 1 10 | . . . . . . . 43 . 100 3 . Level 2 16 | . . . . . . 44 27 19 . . . Level 3 7 | . . . . . . . 14 80 . . . Level 4 2 | . . . . . . . 11 . . . . Level 5 . | . . . . . . . . . . . . High Security . | . . . . . . . . . . . . Max Security . | . . . . . . . . . . . . Peak Influence 1160 | 5 110 144 . 65 . 575 1160 766 396 202 183 Initial 632 | . . 1 . 9 . . 261 632 276 124 72 Average 230 | 1 32 31 . 19 . 235 528 717 354 117 68 Influence Increases 4939 | 35 404 144 180 248 . 975 1787 354 160 234 418 Destroy 0b10 Robot/C 2540 | . 240 60 140 20 . 540 900 160 80 120 280 Destroy 0b10 Robot/NC 230 | 35 20 . . 15 . 65 20 10 . 35 30 Destroy Leader 376 | . 54 10 10 . . 134 92 . . 30 46 Allied During Kill 895 | . . 2 . . . . 688 147 30 28 . Successful Hack 133 | . 30 . . 33 . 33 25 . . . 12 Select Force Hacks 240 | . 60 . . 180 . . . . . . . Disable Machine 210 | . . 45 . . . 105 . 15 45 . . Destroy Structure 180 | . . 27 . . . 68 2 22 5 6 50 Lose Combat Pursuer 135 | . . . 30 . . 30 60 . . 15 . Influence Decreases 4784 | 35 398 150 160 268 . 442 1190 792 496 442 411 Entered New Map 1510 | . . 5 . 11 . . 272 498 416 232 76 Time Decay 2606 | 35 390 145 150 257 . 372 568 214 60 130 285 Lost Part 308 | . 8 . 10 . . 70 150 . . 20 50 Lost Ally 360 | . . . . . . . 200 80 20 60 . Squads Dispatched 28 | . 3 . . . . 10 8 . . 4 3 Investigation 12 | . 3 . . . . 5 2 . . . 2 Extermination 5 | . . . . . . 3 . . . 1 1 Reinforcement 9 | . . . . . . 2 4 . . 3 . Assault 2 | . . . . . . . 2 . . . . Garrison . | . . . . . . . . . . . . Intercept . | . . . . . . . . . . . . Searches Triggered . | . . . . . . . . . . . . Construction Impeded 3 | . . . . . . 1 1 . . 1 . Haulers Reinforced 1 | . . . . . . . . . . 1 . Active Scanning Responses . | . . . . . . . . . . . . Cargo Convoy Interrupts 2 | . . . . . . 1 . . . . 1 Stealth | -11 -10 -10 -10 -9 -9 -6 -6 -6 -6 -6 -5 --------- Run | Yrd Mat Min Sub Rec Scr Fac Ext Cet Arc Hub Fac Distress Signals 8 | . . . . 1 . 3 2 2 . . . Communications Jammed . | . . . . . . . . . . . . Distress Signals . | . . . . . . . . . . . . Times Spotted 195 | . 24 3 12 1 . 40 58 10 5 12 30 Peak Tracking Total 13 | . 5 3 4 1 . 12 9 5 1 6 13 Tactical Retreats 9 | . . . 2 . . 2 4 . . 1 . Traps | -11 -10 -10 -10 -9 -9 -6 -6 -6 -6 -6 -5 ------- Run | Yrd Mat Min Sub Rec Scr Fac Ext Cet Arc Hub Fac Traps Triggered 14 | . 1 . . . . 4 8 . . . 1 Indirectly . | . . . . . . . . . . . . Trap Hack Attempts . | . . . . . . . . . . . . Triggered . | . . . . . . . . . . . . Disarmed . | . . . . . . . . . . . . Reprogrammed . | . . . . . . . . . . . . Reused . | . . . . . . . . . . . . Traps Extracted . | . . . . . . . . . . . . Installed . | . . . . . . . . . . . . Triggered . | . . . . . . . . . . . . Machines | -11 -10 -10 -10 -9 -9 -6 -6 -6 -6 -6 -5 ---------- Run | Yrd Mat Min Sub Rec Scr Fac Ext Cet Arc Hub Fac Machines Disabled 18 | . . 3 4 . . 7 . 1 3 . . Max in Single Turn 4 | . . 2 3 . . 4 . 1 1 . . Garrison Access 1 | . . . . . . 1 . . . . . Machines Repaired . | . . . . . . . . . . . . Machines Dismantled . | . . . . . . . . . . . . Machines Sabotaged . | . . . . . . . . . . . . Overloaded Fab Kills . | . . . . . . . . . . . . Hacking | -11 -10 -10 -10 -9 -9 -6 -6 -6 -6 -6 -5 --------- Run | Yrd Mat Min Sub Rec Scr Fac Ext Cet Arc Hub Fac Machines Accessed 63 | . 10 . 1 12 3 17 13 1 . 2 4 Terminals 39 | . 8 . . 6 . 9 13 1 . 1 1 Fabricators 1 | . . . . . . . . . . . 1 Repair Stations . | . . . . . . . . . . . . Recycling Units 14 | . 2 . . 6 . 4 . . . . 2 Scanalyzers 2 | . . . . . . 2 . . . . . Garrison Access 3 | . . . . . . 2 . . . 1 . Total Hacks 161 | . 22 . 4 36 19 42 28 1 . 3 6 Successful 96 | . 16 . 4 20 19 23 11 . . . 3 Failed 65 | . 6 . . 16 . 19 17 1 . 3 3 Catastrophic 15 | . . . . 5 . 5 1 1 . 1 2 Database Lockouts . | . . . . . . . . . . . . Manual 74 | . 17 . . 25 . 20 6 1 . . 5 Terminals 94 | . 19 . . 20 . 24 28 1 . 1 1 Fabricators 3 | . . . . . . . . . . . 3 Repair Stations . | . . . . . . . . . . . . Recycling Units 29 | . 3 . . 16 . 8 . . . . 2 Scanalyzers 6 | . . . . . . 6 . . . . . Garrison Access 6 | . . . . . . 4 . . . 2 . Terminal Hacks 47 | . 6 . 4 3 19 8 7 . . . . Record 23 | . . . 4 . 19 . . . . . . Part Schematic 2 | . . . . 2 . . . . . . . Robot Analysis 3 | . 2 . . . . 1 . . . . . Prototype ID Bank 2 | . 2 . . . . . . . . . . Open Door 6 | . . . . . . . 6 . . . . Branch Access Points 2 | . 1 . . . . 1 . . . . . Terminal Index 4 | . 1 . . 1 . 1 1 . . . . Recycling Unit Index 1 | . . . . . . 1 . . . . . Dispatch Records 1 | . . . . . . 1 . . . . . Recall Extermination 1 | . . . . . . 1 . . . . . Hauler Manifests 1 | . . . . . . 1 . . . . . Registered Components 1 | . . . . . . 1 . . . . . Fabricator Hacks . | . . . . . . . . . . . . Repair Station Hacks . | . . . . . . . . . . . . Recycling Unit Hacks 4 | . . . . 4 . . . . . . . Retrieve Components 4 | . . . . 4 . . . . . . . Scanalyzer 5 | . . . . . . 5 . . . . . Retrieve Study 5 | . . . . . . 5 . . . . . Garrison Access Hacks 1 | . . . . . . 1 . . . . . Seal Access 1 | . . . . . . 1 . . . . . Unauthorized Hacks 39 | . 10 . . 13 . 9 4 . . . 3 Terminals 24 | . 8 . . 7 . 5 4 . . . . Track 2 | . 1 . . . . . 1 . . . . Botnet 10 | . 2 . . 3 . 2 3 . . . . Disrupt 2 | . . . . . . 2 . . . . . Operators 1 | . . . . . . 1 . . . . . Skim 9 | . 5 . . 4 . . . . . . . Fabricators 1 | . . . . . . . . . . . 1 Haulers 1 | . . . . . . . . . . . 1 Repair Stations . | . . . . . . . . . . . . Recycling Units 14 | . 2 . . 6 . 4 . . . . 2 Tunnel 8 | . 2 . . 6 . . . . . . . Fedlink 6 | . . . . . . 4 . . . . 2 Scanalyzers . | . . . . . . . . . . . . Garrison Access . | . . . . . . . . . . . . Data Cores Recovered 4 | . 1 . . . . 2 . . . 1 . Used . | . . . . . . . . . . . . Hacking Detections 47 | . 9 . . 9 . 14 10 1 . 2 2 Full Trace Events 6 | . 1 . . 2 . 1 2 . . . . Feedback Events 1 | . . . . . . 1 . . . . . Corruption 1 | . . . . . . 1 . . . . . Feedback Blocked . | . . . . . . . . . . . . Robot Schematics Acquired . | . . . . . . . . . . . . Robots Built . | . . . . . . . . . . . . Authchips . | . . . . . . . . . . . . Time . | . . . . . . . . . . . . Total Robot Build Rating . | . . . . . . . . . . . . Part Schematics Acquired 2 | . . . . 2 . . . . . . . Parts Built . | . . . . . . . . . . . . Authchips . | . . . . . . . . . . . . Time . | . . . . . . . . . . . . Total Part Build Rating . | . . . . . . . . . . . . Part Studies Acquired 5 | . . . . . . 5 . . . . . Parts Repaired . | . . . . . . . . . . . . Time . | . . . . . . . . . . . . Parts Recycled . | . . . . . . . . . . . . Recycled Matter . | . . . . . . . . . . . . Retrieved Matter . | . . . . . . . . . . . . Retrieved Components 15 | . . . . 15 . . . . . . . Parts Scanalyzed . | . . . . . . . . . . . . Part Schematics Acquired . | . . . . . . . . . . . . Parts Damaged . | . . . . . . . . . . . . Bothacking | -11 -10 -10 -10 -9 -9 -6 -6 -6 -6 -6 -5 ------------ Run | Yrd Mat Min Sub Rec Scr Fac Ext Cet Arc Hub Fac Used RIF Installer . | . . . . . . . . . . . . Robots Hacked . | . . . . . . . . . . . . Non-combat . | . . . . . . . . . . . . Combat . | . . . . . . . . . . . . Robot Hacks Applied . | . . . . . . . . . . . . Relay Couplers Released . | . . . . . . . . . . . . Fabnet Peak Effective % . | . . . . . . . . . . . . Robots Rewired 17 | . . . . . . . 17 . . . . Allies Hacked 1 | . . . . . . . 1 . . . . Hacks Repelled . | . . . . . . . . . . . . Allies | -11 -10 -10 -10 -9 -9 -6 -6 -6 -6 -6 -5 -------- Run | Yrd Mat Min Sub Rec Scr Fac Ext Cet Arc Hub Fac Total Allies 25 | . . 1 . . . . 24 . . . . Largest Group 19 | . . 1 . . . . 19 13 5 4 . Highest-Rated Group 706 | . . 31 . . . . 706 509 110 89 . Highest-Rated Ally 159 | . . 31 . . . . 159 159 29 29 . Total Orders . | . . . . . . . . . . . . Ally Attacks 230 | . . 1 . . . . 118 75 14 22 . Total Damage 4230 | . . 21 . . . . 1950 1627 213 419 . Kills 26 | . . . . . . . 13 7 2 4 . Allies Corrupted 1 | . . . . . . . 1 . . . . Allies Melted 1 | . . . . . . . . 1 . . . Intel | -11 -10 -10 -10 -9 -9 -6 -6 -6 -6 -6 -5 ------- Run | Yrd Mat Min Sub Rec Scr Fac Ext Cet Arc Hub Fac Active Infowar (turns) 3003 | 77 72 320 266 . . 1707 393 . . . 168 Sensors 356 | . . . . . . . 188 . . . 168 Seismic 1072 | 77 72 320 266 . . 337 . . . . . T.N.C. 2098 | . . . . . . 1705 393 . . . . Robot Analysis Total 3 | . 2 . . . . 1 . . . . . Derelict Logs Recovered 5 | . . 2 . . 3 . . . . . . Drone Launches . | . . . . . . . . . . . . Drone Recoveries . | . . . . . . . . . . . . Exploration | -11 -10 -10 -10 -9 -9 -6 -6 -6 -6 -6 -5 ------------- Run | Yrd Mat Min Sub Rec Scr Fac Ext Cet Arc Hub Fac Turns Passed 11112 | 244 1318 771 1055 701 2147 1709 1703 456 120 263 625 Spaces Moved 6217 | 95 621 468 699 561 1410 897 788 194 57 138 289 Core 4 | 4 . . . . . . . . . . . Treads 2060 | 91 621 468 231 . . . . 165 57 138 289 Legs 1393 | . . . . . . 576 788 29 . . . Wheels 2760 | . . . 468 561 1410 321 . . . . . Hover . | . . . . . . . . . . . . Flight . | . . . . . . . . . . . . Fastest Speed 50 | 50 160 160 110 107 125 105 108 160 160 160 160 Average Speed 145 | 155 160 160 133 117 149 146 136 162 160 160 160 Slowest Speed 245 | 160 160 160 240 125 170 186 245 175 160 160 160 Overloaded Moves . | . . . . . . . . . . . . Propulsion Burnouts . | . . . . . . . . . . . . Robots Hopped . | . . . . . . . . . . . . Potential Cave-ins 2 | . . . . . . . . . . . 2 Cave-ins Triggered . | . . . . . . . . . . . . Exploration Rate (%) 56 | 7 96 86 43 97 85 25 85 57 70 17 12 Regions Visited 11 Branch Regions 8 Pre-discovered Areas 11 | . 3 . . 6 1 1 . . . . . Known Exits Taken 8 | . 1 1 . 1 . 1 1 1 1 1 . Unknown Exits Taken 3 | 1 . . 1 . 1 . . . . . . Scrap Searched 5 | . . 1 . . 4 . . . . . . Spaces Dug 70 | . . 40 13 . . 16 . . . 1 . Terrain Destroyed 201 | . . 40 46 . . 74 . 6 4 3 28 Melee 16 | . . . . . . 16 . . . . . Projectile 13 | . . . . . . . . 6 4 3 . AOE 172 | . . 40 46 . . 58 . . . . 28 Terrain Rammed . | . . . . . . . . . . . . Walls Destroyed . | . . . . . . . . . . . . Machines Disabled . | . . . . . . . . . . . . Actions | -11 -10 -10 -10 -9 -9 -6 -6 -6 -6 -6 -5 --------- Run | Yrd Mat Min Sub Rec Scr Fac Ext Cet Arc Hub Fac Total 7504 | 134 852 483 776 583 1461 1116 1194 298 71 153 383 Wait 413 | 1 147 . 29 9 10 34 104 48 2 . 29 Move 6206 | 94 620 467 698 560 1409 896 787 193 56 137 289 Hop . | . . . . . . . . . . . . Pick Up 87 | 2 14 2 7 1 16 18 10 12 1 . 4 Fast Attach 41 | 7 . . 2 . 3 14 7 2 1 1 4 Attach 35 | . 3 . 4 . . 11 11 . . 1 5 Detach 8 | . 2 . . . 1 1 2 1 . . 1 Swap 88 | . 3 4 9 1 4 29 25 5 1 1 6 Drop 73 | . 4 1 5 1 18 19 3 15 2 . 5 Fire 376 | 30 50 4 22 11 . 74 104 22 8 13 38 Melee 20 | . . . . . . 19 1 . . . . Ram . | . . . . . . . . . . . . Kick 3 | . . . . . . 1 2 . . . . Crush 16 | . 9 5 . . . . . . . . 2 Escape Stasis 40 | . . . . . . . 40 . . . . Rewire 98 | . . . . . . . 98 . . . . Trap . | . . . . . . . . . . . . Miscellaneous . | . . . . . . . . . . . . Route ------- -11/Scrapyard -10/Materials (discovered 5 exits: *Mat x3 / *Min / *Sub) -10/Mines (discovered 3 exits: *Mat x2 / *Sub) -10/Subcaves (discovered 2 exits: [*Mat] / *Rec) -9/Recycling (discovered 2 exits: *Fac / *Scr) -9/Scraptown (discovered 2 exits: *Fac x2) -6/Factory (discovered 5 exits: *Fac / Low x2 / *Ext x2) -6/Extension (discovered 2 exits: *Fac / *Cet) -6/Cetus (discovered 2 exits: *Fac / *Arc) -6/Archives (discovered 2 exits: *Hub x2) -6/Hub_04(d) (discovered 2 exits: *Fac x2) -5/Factory (discovered 1 exit: Upp) History --------- Turn | Location | Event 29 | -11/Scrapyard | Discovered new exit (range 15) 245 | -11/Scrapyard | Entered Materials 246 | -10/Materials | Met a group of wandering Federalists 317 | -10/Materials | Build established: Mutant 346 | -10/Materials | Lost 6 allies 624 | -10/Materials | Discovered new exit (range 7) 790 | -10/Materials | Discovered new exit (range 15) 846 | -10/Materials | Identified exit to Mines 1131 | -10/Materials | Discovered new exit (range 15) 1219 | -10/Materials | Discovered new exit (range 10) 1226 | -10/Materials | Learned Storage emergency access door positions 1289 | -10/Materials | Learned location of 1 exit from Storage 1340 | -10/Materials | Learned 2 Mines zone layouts 1379 | -10/Materials | Learned 2 Mines zone layouts 1406 | -10/Materials | Learned 4 Recycling zone layouts 1490 | -10/Materials | Learned Storage trap positions 1548 | -10/Materials | Learned location of Mines (-8) 1563 | -10/Materials | Entered Mines 1564 | -10/Mines | Identified exit to Materials 1565 | -10/Mines | Identified exit to Subcaves 1567 | -10/Mines | Found DCF Scrap (10 items) 1606 | -10/Mines | Learned Materials stockpile data 1694 | -10/Mines | Learned 4 Materials zone layouts 1697 | -10/Mines | Received a Rocket Launcher from a helpful Derelict 1731 | -10/Mines | Received a Mining Laser from a helpful Derelict 2334 | -10/Mines | Entered Subcaves 2335 | -10/Subcaves | Approached by a straggling Scientist 2407 | -10/Subcaves | A swath of the cavern ceiling suddenly collapsed 2856 | -10/Subcaves | Shifting Twisted Machinery released Battle Rifle 2907 | -10/Subcaves | Shifting Twisted Machinery released Sub. Monowheel 2927 | -10/Subcaves | Discovered new exit (range 15) 2992 | -10/Subcaves | Visited Clippyterm 2995 | -10/Subcaves | Learned Research security intel 2995 | -10/Subcaves | Learned Factory emergency access door positions 3003 | -10/Subcaves | Shifting Twisted Machinery released Sub. Machine Gun 3014 | -10/Subcaves | Shifting Twisted Machinery released Sub. Laser 3114 | -10/Subcaves | Core integrity fell below 50% 3280 | -10/Subcaves | Discovered new exit (range 15) 3389 | -10/Subcaves | Entered Recycling 3390 | -9/Recycling | Identified exit to Scraptown 3390 | -9/Recycling | Identified exit to Factory 4060 | -9/Recycling | Scanned before Scraplab entrance 4077 | -9/Recycling | Entered Scraplab 4090 | -9/Recycling | Entered Scraptown 4233 | -9/Scraptown | Visited UFD Registry 4233 | -9/Scraptown | Registered with UFD as "Softgrid" 4257 | -9/Scraptown | Visited Cyclists 4265 | -9/Scraptown | Entered Cyclist Reading Room 4285 | -9/Scraptown | Visited Awakened 4299 | -9/Scraptown | Visited Symbiants 4332 | -9/Scraptown | Visited Red Mages 4394 | -9/Scraptown | Visited Spacefarers 4409 | -9/Scraptown | Visited Assassins FH 4433 | -9/Scraptown | Visited Comm Corps 4721 | -9/Scraptown | Discovered new exit (range 11) 4796 | -9/Scraptown | Scanned Subdweller tech in exchange for log data 4799 | -9/Scraptown | Learned Research stockpile data 4802 | -9/Scraptown | Learned location of Zion (-7) 5242 | -9/Scraptown | Visited Curators Association 5291 | -9/Scraptown | Visited A0-MCA Data Center 5328 | -9/Scraptown | Visited Derelict Rescue Squad 5342 | -9/Scraptown | Received an X-ray algorithm 5466 | -9/Scraptown | Visited Observation Area 5487 | -9/Scraptown | Visited Scrapoid Pod Storage 5510 | -9/Scraptown | Visited Scrapoid Research Area 5524 | -9/Scraptown | Visited Chapter 10 5555 | -9/Scraptown | Visited DA-N13 Charitable Foundation 5561 | -9/Scraptown | Found DCF Scrap (26 items) 5600 | -9/Scraptown | Visited Scrap Suit Storage 5624 | -9/Scraptown | Visited LU-1G1's Boring Crew 5909 | -9/Scraptown | Given a B+ rating by A0-MCA 5914 | -9/Scraptown | Found A0-MCA's Component Scanner 6009 | -9/Scraptown | Build established: Derelict-Mutant 6145 | -9/Scraptown | Met Optimus 6145 | -9/Scraptown | Accepted into 0bPrime 6234 | -9/Scraptown | Discovered new exit (range 3) 6237 | -9/Scraptown | Entered Factory 6237 | -6/Factory | Evolved 8 slots: Power x1, Propulsion x3, Utility x4 6696 | -6/Factory | Discovered new exit (range 16) 6753 | -6/Factory | Identified exit to Factory 6840 | -6/Factory | Identified exit to Lower Caves 6840 | -6/Factory | Identified exit to Extension 7181 | -6/Factory | Cargo convoy interrupted 7231 | -6/Factory | Destroyed 13 combat bots 7426 | -6/Factory | Loaded intel: 8 recycling unit locations 7431 | -6/Factory | Build established: Mutant 7516 | -6/Factory | Learned location of Protoforge (-2) 7594 | -6/Factory | Lost 3 parts (1u2w) 7841 | -6/Factory | System corruption reached 10% 7903 | -6/Factory | Build established: Scavenger-Mutant 7946 | -6/Factory | Entered Extension 8385 | -6/Extension | Rescued a captive Derelict 8540 | -6/Extension | Rescued a captive Derelict 8590 | -6/Extension | Rescued a captive Derelict 8592 | -6/Extension | Rescued a captive Derelict 8775 | -6/Extension | Spotted B-75 Beast 8789 | -6/Extension | Allies destroyed B-75 Beast 8804 | -6/Extension | Spotted B-75 Beast 8807 | -6/Extension | Build established: Commander-Mutant 8813 | -6/Extension | Allies destroyed B-75 Beast 8921 | -6/Extension | Lost 3 allies 8995 | -6/Extension | Rescued a captive Derelict 9033 | -6/Extension | Core integrity fell below 50% 9052 | -6/Extension | Rescued A7 9181 | -6/Extension | Rescued a captive Derelict 9346 | -6/Extension | First assault squad dispatched 9466 | -6/Extension | Lost 4 allies 9501 | -6/Extension | Destroyed 12 combat bots 9509 | -6/Extension | Lost 10 parts (1p5n2u2w) 9551 | -6/Extension | Discovered exit to Factory (range 10) 9552 | -6/Extension | Discovered new exit (range 6) 9593 | -6/Extension | Identified exit to Cetus 9649 | -6/Extension | Entered Cetus 9649 | -6/Cetus | Accompanied by 13 allies (A7) 9654 | -6/Cetus | Acquired a Cetus Manufacturing Module code from A7 9671 | -6/Cetus | Spotted Cetus Guard 9671 | -6/Cetus | Spotted Cetus Guard 9676 | -6/Cetus | Spotted Cetus Guard 9676 | -6/Cetus | Destroyed Cetus Guard 9679 | -6/Cetus | Destroyed Cetus Guard 9680 | -6/Cetus | Spotted Cetus Guard 9694 | -6/Cetus | Allies destroyed Cetus Guard 9703 | -6/Cetus | Allies destroyed Cetus Guard 9812 | -6/Cetus | Cetus Manufacturing Module disabled 9825 | -6/Cetus | Failed to start Cetus Manufacturing Module 9857 | -6/Cetus | Discovered new exit (range 16) 9900 | -6/Cetus | Spotted Cetus Guard 9900 | -6/Cetus | Spotted Cetus Guard 9904 | -6/Cetus | Spotted Cetus Guard 9904 | -6/Cetus | Spotted Cetus Guard 9909 | -6/Cetus | Destroyed Cetus Guard 9918 | -6/Cetus | Destroyed Cetus Guard 9927 | -6/Cetus | Destroyed Cetus Guard 9936 | -6/Cetus | Allies destroyed A7 9936 | -6/Cetus | Allies destroyed Cetus Guard 9944 | -6/Cetus | Build established: Scavenger-Mutant 9949 | -6/Cetus | Found Prototype Protection 9949 | -6/Cetus | Identified Med. Regenerative Plating 9950 | -6/Cetus | Extracted ID and sensor layout for unrecognized location from A7's data core 9967 | -6/Cetus | Lost 6 allies 9982 | -6/Cetus | Discovered exit to Factory (range 15) 9993 | -6/Cetus | Met Revision 17 10081 | -6/Cetus | Identified exit to Archives 10105 | -6/Cetus | Entered Archives 10105 | -6/Archives | Accompanied by 5 allies 10172 | -6/Archives | Discovered new exit (range 16) 10193 | -6/Archives | Discovered new exit (range 15) 10221 | -6/Archives | Identified exit to Hub_04(d) 10225 | -6/Archives | Entered Hub_04(d) 10225 | -6/Hub_04(d) | Accompanied by 4 allies 10379 | -6/Hub_04(d) | Discovered exit to Factory (range 14) 10412 | -6/Hub_04(d) | Spotted B-75 Beast 10442 | -6/Hub_04(d) | Discovered exit to Factory (range 9) 10488 | -6/Hub_04(d) | Entered Factory 10488 | -5/Factory | Evolved 2 slots: Propulsion x1, Utility x1 10489 | -5/Factory | Identified exit to Upper Caves 10574 | -5/Factory | Loaded intel: 8 recycling unit locations 11074 | -5/Factory | Cargo convoy interrupted 11113 | -5/Factory | Self-destructed Last Messages --------------- 11107_ Destroyed Imp. Heavy Treads. 11107_ P-70 Sage resets P-70 Sage, system corruption cleaned. 11108_ K-01 Serf collects debris. 11108_ R-10 Processor collects Corrupted Unknown Ballistic Gun. 11109_ R-10 Processor collects Corrupted Flexi-carbon Leg. 11110_ U-05 Engineer lays Concrete. 11110_ Penetrated by Slug. 11110_ Centrium Heavy Treads destroyed. 11110_ Slug penetrates R-10 Processor. 11111_ R-10 Processor collects Corrupted Flexi-carbon Leg. 11112_ U-05 Engineer lays Concrete. 11112_ Quantum Reactor destroyed. 11112_ K-01 Serf collects debris. 11112_ R-10 Processor collects Corrupted Lgt. Fission Core. 11113_ Penetrated by Slug. Map ----- +----------------------------------------------------+ | ??????????????? #??? ??????????????????????????? | | ???????????? #####/#########??????????????????? | | ??????? """"""" ## #??????????????????? | | ????? """"""" ## #??????????????????? | | ?????? """"""" ## #??????????????????? | | ###?????""""""" ## #??????????????????? | | #?????? ## #??????????????????? | | #???????? ## #??????????????????? | | ###########+### #??????????????????? | | # #??????????????????? | | "" # ##### ???????????? | | "" + % ?????????????? | | "" # u#??????????????????? | | "" + A#??????????????????? | | "" ## T################## #??????????????????? | | "%#####????????????????# #??????????????????? | | "" #????????????????????# #??????????????????? | | %#????????????????????# #??????????????????? | | ####????????????????????# i #??????????????????? | | ???????????????########## #??????????????????? | | ???????????????? #pp #??????????????????? | | ??????????????? """"" # % #??????????????????? | | ????????????????""""" ;%k! #??????????????????? | | ??????????????# """ #!%*= #??????????????????? | | ??????????????# #*==* #??????????????????? | | ????????????????? ""Y"" #@R%*!#??????????????????? | | ????????????????? """"" + %== #??????????????????? | | ??????????????# # = #??????????????????? | | ??????????????########### #??????????????????? | | ???????????????????????? uhp #??????????????????? | | ????????????????????????# R ?????????????????? | | ????????????????????????# [ "????????????????? | | ????????????????????????#!=! ""???????????????? | | ????????????????????????%[%x% ""???????????????? | | ???????????????????????? [ R% ???????????????? | | ???????????????????????? ! %* ???????????????? | | ????????????????????????# ###??????????????? | | ????????????????????????? % m????????????????? | | ????????????????????????? ????????????????? | | ????????????????????????? ? ?????????????????? | | ????????????????????????? ?????????????????????? | | ?????????????????????????????????????????????????? | | ?????????????????????????????????????????????????? | | ?????????????????????????????????????????????????? | | ?????????????????????????????????????????????????? | | ?????????????????????????????????????????????????? | | ?????????????????????????????????????????????????? | | ?????????????????????????????????????????????????? | | ?????????????????????????????????????????????????? | | ?????????????????????????????????????????????????? | +----------------------------------------------------+ Best States ------------- Heat Dissipation 91 Energy Generation 45 Energy Capacity 600 Matter Stores 300 Matter Capacity 300 Sight Range 16 Robot Scan Range 15 Terrain Scan Density 10 Armor Coverage 1350 Weapon Shielding 33 Evasion (%) 55 Core Analysis 6 Recoil Reduction 6 Offensive Hacking 12 Item Schematics ----------------- Assault Cannon | -9/Recycling | Hacked Hcp. Storage Unit | -9/Recycling | Hacked Robot Schematics ------------------ None Fabricated ------------ Nothing Repaired ---------- Nothing Studied --------- Carbon-fiber Leg | -6/Factory | Hacked Arm. Wheel | -6/Factory | Hacked Grenade Launcher | -6/Factory | Hacked Imp. Light Cannon | -6/Factory | Hacked Arm. Leg | -6/Factory | Hacked Alien Tech Used ----------------- None Achievements -------------- None Challenges ------------ None Game ------ Seed SmartbombAluminumStreamer Manual? 0 Play Time 01:05:34 Cumulative 465.5 hours Start 2025.10.30 @ 16:20:30 End 2025.10.30 @ 17:36:34 Sessions 1 Manual Loads 0 Difficulty Rogue Special Mode None Game No. 249 Rogue 249 Adventurer 0 Explorer 0 Win Type - Total 21 Types 13/1/5/1/0/0/0/1/0/0 Lore% 93 Gallery% 85 Achievement% 77 Wizard Run 0 Options --------- Layout 2 ASCII 0 Keyboard 1 Movement Vi Keybinds 0 Fullscreen 1 Font 28/Terminus Map View 50x52 Zoom Use 0% Tactical HUD 1 Map Filters NONE Filters NONE Steam 1 RUN: 4a098ad7-1b0f-4a99-b59c-9e02c2d1cdad